bitfinex/quotes_SOLUSD_20240826
["timestamp","ask_amount","ask_price","bid_price","bid_amount"]
[1724658827547,1.56879901,159.4,159.34,9.67778006]
[1724658827741,390.3,159.41,159.34,9.67778006]
[1724658828547,1.56864224,159.4,159.34,9.67778006]
[1724658828752,1.56873345,159.39,159.34,9.67778006]
[1724658828952,1.56873345,159.39,159.32,9.67778006]
[1724658829853,1.56873242,159.4,159.32,9.67778006]
[1724658830046,1.56873366,159.39,159.32,9.67778006]
[1724658830742,1.56873109,159.4,159.32,9.67778006]
[1724658832767,390.3,159.42,159.32,9.67778006]
[1724658832768,390.3,159.42,159.33,1.25498313]
[1724658833467,390.3,159.42,159.36,9.67778006]
[1724658834064,1.56851765,159.41,159.35,6.5305]
[1724658835237,390.3,159.42,159.35,6.5305]
[1724658835956,1.56873236,159.41,159.35,6.5305]
[1724658837361,390.3,159.42,159.35,6.5305]
[1724658837670,9.67778006,159.43,159.35,6.5305]
[1724658837844,1.56870498,159.42,159.35,6.5305]
[1724658839046,9.67778006,159.43,159.35,6.5305]
[1724658840244,1.56870115,159.42,159.35,6.5305]
[1724658841670,9.67778006,159.43,159.35,6.5305]
[1724658841970,1.56869403,159.42,159.35,6.5305]
[1724658842993,9.67778006,159.43,159.35,6.5305]
[1724658843397,9.67778006,159.39,159.34,15.6589]
[1724658843576,1.56898593,159.38,159.34,15.6589]
[1724658845192,1.56898593,159.38,159.31,6.0109]
[1724658846574,1.56898593,159.38,159.31,8.50364908]
[1724658846773,1.56898593,159.38,159.31,6.0109]
[1724658849295,391.86898593,159.38,159.31,6.0109]
[1724658850685,391.86898593,159.38,159.31,15.68868006]
[1724658850889,390.3,159.38,159.33,9.67778006]
[1724658851891,390.3,159.38,159.32,9.67778006]
[1724658854485,1.56886576,159.37,159.31,8.50141362]
[1724658854686,1.56886576,159.37,159.31,6.0109]
[1724658854886,1.56886576,159.37,159.31,8.50212406]
[1724658855507,390.3,159.37,159.31,7.26624205]
[1724658855682,390.3,159.37,159.31,9.75706755]
[1724658855884,390.3,159.37,159.31,6.0109]
[1724658856188,390.3,159.37,159.31,8.50138862]
[1724658857409,390.3,159.37,159.31,6.0109]
[1724658857608,390.3,159.37,159.31,9.75689081]
[1724658857913,390.3,159.37,159.32,9.67778006]
[1724658858101,390.3,159.37,159.32,10.93297486]
[1724658858301,390.3,159.37,159.34,9.67778006]
[1724658859284,390.3,159.37,159.35,16.28]
[1724658860205,390.3,159.37,159.36,9.67778006]
[1724658860399,390.3,159.37,159.36,16.14908006]
[1724658861111,390.3,159.45,159.36,16.14908006]
[1724658861411,390.3,159.45,159.38,9.67778006]
[1724658861908,390.3,159.45,159.36,8.95896752]
[1724658862212,1.56849467,159.44,159.36,16.14908006]
[1724658862388,1.56849467,159.44,159.36,18.63674758]
[1724658862821,1.56849467,159.44,159.36,16.14908006]
[1724658863513,1.56849467,159.44,159.36,6.4713]
[1724658864296,390.3,159.43,159.36,6.4713]
[1724658864503,1.5686014,159.42,159.36,6.4713]
[1724658865712,1.5686014,159.42,159.36,7.72743998]
[1724658865893,1.5686014,159.42,159.37,1.25613998]
[1724658867305,1.5686014,159.42,159.38,1.25613998]
[1724658867615,390.3,159.43,159.36,8.95931122]
[1724658867616,390.3,159.43,159.37,2.51090347]
[1724658867807,390.3,159.43,159.38,1.25613998]
[1724658868307,390.3,159.43,159.38,9.67778006]
[1724658868612,390.3,159.43,159.39,1.25601984]
[1724658868800,285.83345187,159.48,159.39,1.25601984]
[1724658868801,396.571,159.47,159.39,1.25601984]
[1724658869295,396.571,159.47,159.38,9.67778006]
[1724658869495,396.571,159.47,159.39,1.25599929]
[1724658869704,396.571,159.47,159.38,9.67778006]
[1724658870011,396.571,159.47,159.39,1.25599909]
[1724658870186,399.86227181,159.47,159.38,9.67778006]
[1724658870387,396.571,159.47,159.39,1.25599899]
[1724658870594,399.86227181,159.47,159.38,9.67778006]
[1724658870796,399.86227181,159.47,159.39,1.25601718]
[1724658870998,399.86227181,159.47,159.38,9.67778006]
[1724658871218,7.83961469,159.46,159.39,1.25601199]
[1724658871389,1.56842548,159.45,159.4,1.25598577]
[1724658871597,1.56842548,159.45,159.37,2.48801122]
[1724658871794,1.56842548,159.45,159.38,3.7439979]
[1724658872017,1.56842548,159.45,159.39,1.25598668]
[1724658872196,1.56842548,159.45,159.38,2.48801122]
[1724658872495,1.56842548,159.45,159.39,1.25600061]
[1724658872697,1.56842548,159.45,159.38,2.48801122]
[1724658872996,1.56842548,159.45,159.39,1.25600101]
[1724658873199,391.86842548,159.45,159.37,2.48801122]
[1724658873411,391.86842548,159.45,159.38,1.25599969]
[1724658873613,391.86842548,159.45,159.39,1.25599969]
[1724658873815,391.86842548,159.45,159.37,2.48801122]
[1724658874131,391.86842548,159.45,159.36,16.14908006]
[1724658874327,391.86842548,159.45,159.37,2.48869569]
[1724658874620,391.86842548,159.45,159.38,1.2560002]
[1724658874812,391.86842548,159.45,159.39,1.2560002]
[1724658875114,391.86842548,159.45,159.37,2.48869569]
[1724658875318,391.86842548,159.45,159.38,1.25599969]
[1724658875510,391.86842548,159.45,159.39,1.25599969]
[1724658875691,391.86842548,159.45,159.37,2.48869569]
[1724658875888,391.86842548,159.45,159.38,1.25599969]
[1724658876221,391.86842548,159.45,159.39,1.25599969]
[1724658876416,391.86842548,159.45,159.37,2.48869569]
[1724658876608,391.86842548,159.45,159.38,1.25605152]
[1724658876918,391.86842548,159.45,159.39,1.25605152]
[1724658877121,391.86842548,159.45,159.37,2.48869569]
[1724658877416,398.14012548,159.45,159.38,1.25605152]
[1724658877621,398.14012548,159.45,159.39,1.25605859]
[1724658877920,399.86297181,159.45,159.38,1.25605859]
[1724658878126,399.86297181,159.45,159.36,10.2148871]
[1724658878420,396.5717,159.45,159.37,1.25607686]
[1724658878615,396.5717,159.45,159.38,1.25607686]
[1724658878818,396.5717,159.45,159.39,1.25607686]
[1724658878999,396.5717,159.45,159.38,1.25607686]
[1724658879317,390.3,159.44,159.39,1.25607686]
[1724658879491,3.29127181,159.46,159.37,12.16647575]
[1724658879697,1.56828209,159.45,159.38,3.74465969]
[1724658879904,1.56828209,159.45,159.39,1.255964]
[1724658880105,1.56828209,159.45,159.4,1.255964]
[1724658880416,1.56828209,159.45,159.39,1.255964]
[1724658880726,1.56828209,159.45,159.4,1.255964]
[1724658880902,1.56828209,159.45,159.38,3.74465969]
[1724658881098,1.56828209,159.45,159.39,1.255964]
[1724658881323,1.56828209,159.45,159.4,1.255964]
[1724658881517,1.56828209,159.45,159.38,1.255964]
[1724658881725,399.86207181,159.47,159.39,10.93374406]
[1724658882039,393.59127181,159.47,159.4,1.255964]
[1724658882334,1.56824292,159.46,159.4,1.255964]
[1724658882537,1.56823331,159.45,159.4,1.255964]
[1724658882837,1.56823331,159.45,159.39,9.67778006]
[1724658883206,1.56823331,159.45,159.39,13.2225559]
[1724658883407,1.56823331,159.45,159.39,9.67778006]
[1724658883609,1.56821308,159.46,159.39,9.67778006]
[1724658883835,1.56821308,159.46,159.39,13.22262215]
[1724658884027,1.56821308,159.46,159.39,9.67778006]
[1724658884737,1.56821308,159.46,159.39,13.22261325]
[1724658884931,393.59127181,159.47,159.41,16.00508006]
[1724658885236,390.3,159.48,159.42,6.05259627]
[1724658885412,390.3,159.48,159.42,4.79683286]
[1724658885615,390.3,159.48,159.43,1.25565993]
[1724658886132,390.3,159.48,159.43,3.54237831]
[1724658886330,390.3,159.48,159.43,1.25562104]
[1724658886537,390.3,159.48,159.43,10.9334011]
[1724658886730,390.3,159.51,159.43,10.9334011]
[1724658887026,3.29127181,159.53,159.45,9.67778006]
[1724658887249,1.56758744,159.52,159.46,6.1194]
[1724658888830,1.56758687,159.53,159.46,6.1194]
[1724658889221,17.51376693,159.53,159.46,6.1194]
[1724658891106,401.54536693,159.53,159.46,6.1194]
[1724658891729,6.2692,159.51,159.46,6.1194]
[1724658891931,1.56784185,159.5,159.46,6.1194]
[1724658892437,15.94788006,159.49,159.44,16.4156]
[1724658892619,1.5680489,159.48,159.44,16.4156]
[1724658895711,15.94788006,159.49,159.44,16.4156]
[1724658896641,1.56802747,159.48,159.44,16.4156]
[1724658897546,6.2701,159.49,159.44,16.4156]
[1724658898135,1.56802653,159.48,159.44,16.4156]
[1724658898645,6.2701,159.49,159.44,16.4156]
[1724658899842,1.56802487,159.48,159.44,16.4156]
[1724658908746,1.56802102,159.49,159.44,16.4156]
[1724658908947,6.2696,159.5,159.44,16.4156]
[1724658909124,1.56802086,159.49,159.44,16.4156]
[1724658910449,7.83802086,159.49,159.44,16.4156]
[1724658910660,6.2708,159.47,159.42,6.6224]
[1724658910944,9.67778006,159.45,159.4,15.7094]
[1724658911120,1.56834539,159.44,159.4,15.7094]
[1724658912231,1.56830519,159.46,159.4,15.7094]
[1724658912554,1.56823884,159.46,159.4,15.7094]
[1724658912857,6.2704,159.48,159.4,15.7094]
[1724658913634,1.56810068,159.47,159.4,15.7094]
[1724658914728,11.24588074,159.47,159.4,15.7094]
[1724658914931,17.51688074,159.47,159.4,15.7094]
[1724658919257,9.67778006,159.45,159.4,15.7094]
[1724658919464,1.56837899,159.44,159.4,15.7094]
[1724658920330,15.94858006,159.47,159.4,15.7094]
[1724658920565,1.56813878,159.46,159.4,15.7094]
[1724658920947,390.3,159.47,159.4,15.7094]
[1724658921239,1.56805881,159.46,159.4,15.7094]
[1724658922057,390.3,159.47,159.4,25.38718006]
[1724658923660,390.3,159.47,159.41,1.25440543]
[1724658923971,390.3,159.47,159.4,25.38718006]
[1724658924261,390.3,159.47,159.41,6.4264]
[1724658924466,390.3,159.47,159.41,7.68217301]
[1724658924839,3.29127181,159.5,159.45,6.5195]
[1724658925043,3.29127181,159.53,159.47,16.5953]
[1724658925272,1.56753981,159.52,159.47,16.5953]
[1724658925449,1.56775071,159.51,159.47,16.5953]
[1724658925651,11.24553077,159.51,159.47,16.5953]
[1724658926044,17.51503077,159.51,159.47,16.5953]
[1724658926653,11.24553077,159.51,159.47,16.5953]
[1724658929744,401.54553077,159.51,159.47,16.5953]
[1724658931751,390.3,159.51,159.47,16.5953]
[1724658933277,1.56753353,159.5,159.47,16.5953]
[1724658935873,1.56757558,159.51,159.47,16.5953]
[1724658938870,3.29127181,159.52,159.47,16.5953]
[1724658942370,393.59127181,159.53,159.47,16.5953]
[1724658943674,4.85880172,159.52,159.47,16.5953]
[1724658943970,1.56766764,159.51,159.47,16.5953]
[1724658944348,1.56766764,159.51,159.45,6.5195]
[1724658944349,11.2454477,159.51,159.45,6.5195]
[1724658944545,17.5147477,159.51,159.45,6.5195]
[1724658944960,11.2454477,159.51,159.45,6.5195]
[1724658947082,1.56752745,159.51,159.45,6.5195]
[1724658948778,1.56764386,159.51,159.45,6.5195]
[1724658954473,1.56752929,159.51,159.45,6.5195]
[1724658955261,390.3,159.52,159.45,6.5195]
[1724658955463,390.3,159.52,159.47,16.5435]
[1724658955662,390.3,159.52,159.48,45.0]
[1724658956788,390.3,159.52,159.47,26.22128006]
[1724658959069,390.3,159.52,159.47,16.5435]
[1724658959463,399.85130307,159.55,159.47,16.5435]
[1724658959787,1.56736312,159.54,159.47,16.5435]
[1724658960871,9.67778006,159.52,159.45,6.5195]
[1724658961191,1.56764555,159.51,159.45,6.5195]
[1724658961490,9.67778006,159.5,159.45,6.5195]
[1724658961702,1.567746,159.49,159.45,6.5195]
[1724658962191,1.5677459,159.51,159.45,6.5195]
[1724658963480,15.94658006,159.52,159.45,6.5195]
[1724658964487,1.56771237,159.51,159.45,6.5195]
[1724658965594,390.3,159.51,159.46,1.25416748]
[1724658966780,390.3,159.51,159.45,6.5195]
[1724658967089,1.56762481,159.5,159.45,6.5195]
[1724658967496,390.3,159.51,159.46,1.25410722]
[1724658967797,390.3,159.51,159.46,45.0]
[1724658968186,1.56750977,159.5,159.46,45.0]
[1724658970485,390.3,159.51,159.46,45.0]
[1724658970995,1.56751064,159.5,159.46,45.0]
[1724658971574,1.56750937,159.51,159.45,6.5195]
[1724658972574,7.84657023,159.5,159.45,6.5195]
[1724658972894,9.41419683,159.49,159.45,6.5195]
[1724658973083,1.5676266,159.49,159.45,6.5195]
[1724658973291,7.84665285,159.48,159.45,6.5195]
[1724658973476,7.84665285,159.47,159.45,6.5195]
[1724658973795,7.84665285,159.46,159.45,6.5195]
[1724658976277,7.84671108,159.46,159.45,6.5195]
[1724658979214,7.84671108,159.46,159.45,71.5195]
[1724658979584,390.3,159.53,159.45,71.5195]
[1724658979780,390.3,159.53,159.48,9.67778006]
[1724658982398,390.3,159.53,159.48,25.81178006]
[1724658983184,390.3,159.54,159.48,25.81178006]
[1724658983597,1.56723681,159.53,159.48,25.81178006]
[1724658984109,1.56723681,159.53,159.48,16.134]
[1724658985303,393.58167539,159.54,159.48,16.134]
[1724658986185,1.56738951,159.53,159.48,16.134]
[1724658987894,390.3,159.54,159.48,16.134]
[1724658989103,3.28167539,159.55,159.48,16.134]
[1724658989408,1.56723315,159.54,159.48,16.134]
[1724658990009,4.84890844,159.55,159.48,16.134]
[1724658990382,1.56723442,159.54,159.48,16.134]
[1724658991705,9.67778006,159.53,159.48,16.134]
[1724658991904,1.56746094,159.52,159.48,16.134]
[1724658992689,7.84580052,159.51,159.48,16.134]
[1724658992910,7.84580052,159.5,159.48,16.134]
[1724658993218,7.8458175,159.49,159.48,16.134]
[1724658994314,7.8458175,159.49,159.48,61.134]
[1724658996409,1.56745166,159.54,159.48,61.134]
[1724658996617,7.84530562,159.49,159.48,61.134]
[1724659000512,7.84530562,159.49,159.45,6.5195]
[1724659000688,7.84530562,159.48,159.45,6.5195]
[1724659000889,7.84530562,159.47,159.45,6.5195]
[1724659001092,7.84530562,159.46,159.41,6.4237]
[1724659001293,9.41336612,159.45,159.39,15.0964]
[1724659001514,7.84530562,159.44,159.39,15.0964]
[1724659001818,1.5680605,159.45,159.39,15.0964]
[1724659001819,9.41351,159.43,159.39,15.0964]
[1724659002116,7.84530562,159.42,159.39,15.0964]
[1724659002290,7.84530562,159.41,159.39,15.0964]
[1724659002499,7.84530562,159.4,159.39,15.0964]
[1724659003323,7.84530562,159.4,159.35,16.1668]
[1724659003496,7.84530562,159.39,159.35,16.1668]
[1724659003691,1.56856051,159.42,159.35,16.1668]
[1724659003923,7.84942831,159.41,159.35,16.1668]
[1724659004094,7.84942831,159.4,159.35,16.1668]
[1724659004420,7.84942831,159.39,159.35,16.1668]
[1724659004592,1.56856051,159.42,159.35,16.1668]
[1724659004788,7.84948858,159.41,159.35,16.1668]
[1724659005111,7.84948858,159.4,159.36,20.0]
[1724659005416,1.56856051,159.42,159.36,20.0]
[1724659005631,7.84948539,159.41,159.36,20.0]
[1724659005914,7.84948539,159.4,159.36,20.0]
[1724659006121,1.56856051,159.42,159.36,20.0]
[1724659006323,7.8494822,159.41,159.36,20.0]
[1724659006497,7.8494822,159.4,159.36,20.0]
[1724659006698,1.56856051,159.42,159.36,20.0]
[1724659007011,7.8494822,159.41,159.36,20.0]
[1724659007205,7.8494822,159.4,159.36,20.0]
[1724659007402,1.56856051,159.42,159.36,20.0]
[1724659007609,7.8494822,159.41,159.37,1.25484706]
[1724659007909,7.8494822,159.4,159.37,1.25484706]
[1724659008107,390.3,159.44,159.37,1.25484706]
[1724659008298,7.84952214,159.43,159.37,1.25484706]
[1724659008497,7.84952214,159.42,159.37,1.25484706]
[1724659008694,7.84952214,159.41,159.37,1.25484706]
[1724659008927,390.3,159.44,159.37,1.25484706]
[1724659009223,7.8494753,159.43,159.37,1.25484706]
[1724659009430,7.8494753,159.42,159.37,1.25484706]
[1724659009599,7.8494753,159.41,159.37,1.25484706]
[1724659009800,390.3,159.44,159.37,1.25484706]
[1724659010100,7.84943575,159.43,159.37,1.25484706]
[1724659010399,7.84943735,159.42,159.37,1.25484706]
[1724659010617,7.84943735,159.41,159.37,1.25484706]
[1724659010919,390.3,159.44,159.37,1.25484706]
[1724659011217,7.84948099,159.43,159.37,1.25484706]
[1724659011418,7.84948099,159.42,159.37,1.25484706]
[1724659011613,7.84948099,159.41,159.37,1.25484706]
[1724659011825,390.3,159.44,159.37,1.25484706]
[1724659012016,7.8494696,159.43,159.37,1.25484706]
[1724659012211,19.09564228,159.42,159.36,20.0]
[1724659012418,9.67778006,159.4,159.35,16.1668]
[1724659012609,1.56867945,159.39,159.35,16.1668]
[1724659013494,9.67778006,159.4,159.35,16.1668]
[1724659013717,1.56873016,159.41,159.35,16.1668]
[1724659013920,390.3,159.42,159.35,16.1668]
[1724659015338,7.85040085,159.4,159.35,16.1668]
[1724659015495,390.3,159.42,159.35,16.1668]
[1724659017922,1.56859036,159.41,159.35,16.1668]
[1724659018523,1.56859063,159.41,159.35,16.1668]
[1724659018826,390.3,159.42,159.36,45.0]
[1724659019028,1.56858839,159.41,159.36,45.0]
[1724659019914,1.56844434,159.42,159.35,16.1668]
[1724659021500,7.85040435,159.41,159.35,16.1668]
[1724659021702,1.56855401,159.4,159.35,16.1668]
[1724659022010,1.56855401,159.42,159.35,16.1668]
[1724659022210,7.85040495,159.41,159.35,16.1668]
[1724659022419,1.56855401,159.42,159.35,16.1668]
[1724659023427,17.52801625,159.41,159.35,16.1668]
[1724659023726,1.56864812,159.4,159.35,16.1668]
[1724659026830,1.56864474,159.39,159.33,6.1433]
[1724659027038,1.56864474,159.39,159.34,20.0]
[1724659027711,1.56879536,159.4,159.34,20.0]
[1724659027904,1.56878932,159.39,159.34,20.0]
[1724659028903,1.56878769,159.4,159.34,20.0]
[1724659029102,7.85195702,159.39,159.34,20.0]
[1724659029320,1.56878769,159.4,159.34,20.0]
[1724659029632,7.85195702,159.39,159.34,20.0]
[1724659029822,1.56880573,159.38,159.34,20.0]
[1724659030131,1.56880791,159.4,159.34,20.0]
[1724659030324,9.42082186,159.39,159.34,20.0]
[1724659030625,1.56880879,159.39,159.34,20.0]
[1724659034203,11.24658885,159.39,159.33,6.1433]
[1724659034404,7.85254317,159.38,159.33,6.1433]
[1724659034699,1.56893533,159.37,159.31,15.9876]
[1724659035514,1.56891125,159.38,159.31,15.9876]
[1724659035736,1.56891125,159.38,159.32,20.0]
[1724659036113,9.67778006,159.37,159.29,6.5644]
[1724659036523,1.56916714,159.36,159.29,6.5644]
[1724659036833,9.67778006,159.37,159.29,6.5644]
[1724659037033,9.67778006,159.37,159.29,7.81973359]
[1724659037204,1.56916724,159.36,159.29,6.5644]
[1724659037822,1.56916724,159.36,159.3,20.0]
[1724659038535,6.274,159.39,159.31,45.0]
[1724659038536,1.56907424,159.38,159.31,45.0]
[1724659038732,7.85316081,159.37,159.31,45.0]
[1724659038911,1.56907424,159.38,159.31,45.0]
[1724659039112,7.85315602,159.37,159.31,45.0]
[1724659039443,1.56892396,159.36,159.31,45.0]
[1724659039607,1.56893402,159.38,159.31,45.0]
[1724659039929,7.85315602,159.37,159.31,45.0]
[1724659040233,1.56894427,159.36,159.3,29.67778006]
[1724659040433,1.56896323,159.38,159.3,29.67778006]
[1724659040632,7.85316111,159.37,159.3,29.67778006]
[1724659040802,1.56896071,159.38,159.3,29.67778006]
[1724659041005,7.85315792,159.37,159.31,1.25514847]
[1724659041231,9.67778006,159.39,159.31,45.0]
[1724659041417,7.85315762,159.38,159.31,45.0]
[1724659041621,7.85315762,159.37,159.31,45.0]
[1724659041818,1.56892115,159.38,159.31,45.0]
[1724659042019,7.85315602,159.37,159.31,45.0]
[1724659042222,1.56892115,159.38,159.31,45.0]
[1724659042413,7.85315602,159.37,159.31,45.0]
[1724659042614,7.85315602,159.36,159.31,45.0]
[1724659042832,1.56892115,159.38,159.31,45.0]
[1724659043133,7.85315921,159.37,159.31,45.0]
[1724659043333,7.85315921,159.36,159.31,45.0]
[1724659043537,1.56892115,159.38,159.31,45.0]
[1724659043837,7.85315602,159.37,159.31,45.0]
[1724659044031,9.42207656,159.36,159.31,45.0]
[1724659044226,1.56892054,159.36,159.31,45.0]
[1724659044530,7.85315921,159.35,159.31,45.0]
[1724659044741,1.56892031,159.38,159.31,45.0]
[1724659045034,7.85315602,159.37,159.31,45.0]
[1724659045241,7.85315602,159.36,159.31,45.0]
[1724659045442,7.85315602,159.35,159.31,45.0]
[1724659045629,1.56892031,159.38,159.31,45.0]
[1724659045838,7.85315602,159.37,159.31,45.0]
[1724659046027,7.85315602,159.36,159.31,45.0]
[1724659046223,1.56892031,159.38,159.31,45.0]
[1724659046224,7.85315602,159.35,159.31,45.0]
[1724659046439,7.85315602,159.34,159.31,45.0]
[1724659046644,1.56892031,159.38,159.31,45.0]
[1724659046844,7.85315632,159.37,159.31,45.0]
[1724659047148,9.42207582,159.36,159.31,45.0]
[1724659047329,7.85315632,159.35,159.31,45.0]
[1724659047524,7.85315632,159.34,159.31,45.0]
[1724659047718,1.56891921,159.38,159.31,45.0]
[1724659047924,7.85316271,159.37,159.3,20.0]
[1724659048238,9.42222183,159.36,159.3,20.0]
[1724659048448,9.42231725,159.35,159.3,20.0]
[1724659048626,7.85316271,159.34,159.3,20.0]
[1724659048949,9.67778006,159.37,159.3,20.0]
[1724659048950,7.85316271,159.33,159.3,20.0]
[1724659049125,9.67778006,159.37,159.3,20.0]
[1724659049323,7.85313232,159.36,159.3,20.0]
[1724659049639,7.85313232,159.35,159.3,20.0]
[1724659049840,7.85313232,159.34,159.31,1.25522255]
[1724659050047,7.8531561,159.33,159.31,1.25522255]
[1724659050219,15.95138006,159.4,159.31,1.25522255]
[1724659050544,7.85315343,159.39,159.31,1.25522255]
[1724659050720,7.85315343,159.38,159.31,1.25522255]
[1724659050919,7.85315343,159.37,159.31,1.25522255]
[1724659051119,7.85315343,159.36,159.3,29.67778006]
[1724659051340,7.85315343,159.35,159.3,29.67778006]
[1724659051547,7.85315343,159.34,159.3,20.0]
[1724659051725,7.85315343,159.33,159.3,20.0]
[1724659051926,1.56899723,159.37,159.3,20.0]
[1724659052119,7.85321479,159.36,159.3,20.0]
[1724659052319,7.85321479,159.35,159.3,20.0]
[1724659052536,7.85321479,159.34,159.3,20.0]
[1724659052740,7.85321479,159.33,159.3,20.0]
[1724659053057,1.56899723,159.37,159.3,20.0]
[1724659053228,7.85327255,159.36,159.3,20.0]
[1724659053547,7.85327255,159.35,159.3,20.0]
[1724659053725,7.85327255,159.34,159.3,20.0]
[1724659053926,7.85327255,159.33,159.3,20.0]
[1724659054129,1.56899723,159.37,159.3,20.0]
[1724659054433,7.85326617,159.36,159.3,20.0]
[1724659054615,1.56899723,159.37,159.3,20.0]
[1724659054616,7.85326617,159.35,159.3,20.0]
[1724659054819,7.85326617,159.34,159.3,20.0]
[1724659055019,7.85326617,159.33,159.3,20.0]
[1724659055242,7.85326617,159.32,159.3,20.0]
[1724659055427,1.56899723,159.37,159.3,20.0]
[1724659055743,7.85327415,159.36,159.3,20.0]
[1724659055931,9.4223019,159.35,159.3,20.0]
[1724659056155,7.85327415,159.34,159.3,20.0]
[1724659056349,7.85327415,159.33,159.3,20.0]
[1724659056650,1.56904361,159.37,159.3,20.0]
[1724659056948,7.85322567,159.36,159.3,20.0]
[1724659057155,9.42232302,159.35,159.3,20.0]
[1724659057350,7.85322567,159.34,159.3,20.0]
[1724659057535,7.85322567,159.33,159.3,20.0]
[1724659057733,1.56918603,159.37,159.3,20.0]
[1724659057928,7.85359682,159.32,159.3,20.0]
[1724659058132,1.56918603,159.37,159.3,20.0]
[1724659058348,7.85342875,159.36,159.3,20.0]
[1724659058673,7.85342875,159.35,159.3,20.0]
[1724659058824,7.85342875,159.34,159.31,1.25534895]
[1724659059146,399.97778006,159.38,159.3,20.0]
[1724659059147,7.85342875,159.33,159.3,20.0]
[1724659059450,7.85342875,159.32,159.3,20.0]
[1724659059748,399.97778006,159.38,159.3,21.25528803]
[1724659059954,7.85326487,159.37,159.3,21.25528803]
[1724659060166,7.85326487,159.36,159.3,21.25528803]
[1724659060458,7.85326487,159.35,159.3,21.25528803]
[1724659060633,7.85326487,159.34,159.3,21.25528803]
[1724659060834,7.85326487,159.33,159.3,21.25528803]
[1724659061046,7.85326487,159.32,159.3,21.25528803]
[1724659061265,390.3,159.37,159.3,21.25528803]
[1724659061442,7.85327412,159.36,159.3,21.25528803]
[1724659061647,7.85327412,159.35,159.3,20.0]
[1724659061849,7.85327412,159.34,159.3,20.0]
[1724659062043,7.85327412,159.33,159.3,20.0]
[1724659062244,7.85327412,159.32,159.3,20.0]
[1724659062443,7.85327412,159.31,159.3,20.0]
[1724659064557,7.8535995,159.31,159.3,20.0]
[1724659066145,7.8535995,159.31,159.27,24.71228006]
[1724659066146,7.8535995,159.31,159.27,15.0345]
[1724659066352,7.8535995,159.3,159.27,15.0345]
[1724659066552,7.8535995,159.29,159.27,15.0345]
[1724659066856,1.56938179,159.33,159.27,15.0345]
[1724659067159,7.8544836,159.32,159.27,15.0345]
[1724659067363,7.8544836,159.31,159.27,15.0345]
[1724659067568,7.85473655,159.3,159.25,6.4648]
[1724659067745,7.85473655,159.29,159.26,45.0]
[1724659067953,7.85473655,159.28,159.26,45.0]
[1724659068170,1.5693779,159.32,159.26,45.0]
[1724659068370,7.85474324,159.31,159.27,20.0]
[1724659068548,7.85474324,159.3,159.27,20.0]
[1724659068746,7.85474324,159.29,159.27,20.0]
[1724659068968,7.85474324,159.28,159.27,20.0]
[1724659070546,1.56940715,159.33,159.27,20.0]
[1724659070769,7.85398603,159.32,159.27,20.0]
[1724659070970,7.85398603,159.31,159.27,20.0]
[1724659071194,7.85398603,159.3,159.27,20.0]
[1724659071347,1.56940715,159.33,159.27,20.0]
[1724659071348,7.85398603,159.29,159.27,20.0]
[1724659071543,1.56940715,159.33,159.27,20.0]
[1724659071766,7.85425366,159.32,159.27,20.0]
[1724659072069,7.85425366,159.31,159.27,20.0]
[1724659072269,7.85425366,159.3,159.27,20.0]
[1724659072464,7.85425366,159.29,159.27,20.0]
[1724659072674,1.56940715,159.33,159.27,20.0]
[1724659072857,7.85424727,159.32,159.27,20.0]
[1724659073046,9.42371213,159.31,159.27,20.0]
[1724659073249,7.85424727,159.3,159.27,20.0]
[1724659073456,7.85424727,159.29,159.27,20.0]
[1724659073663,1.56946168,159.33,159.27,20.0]
[1724659073664,7.85424727,159.28,159.27,20.0]
[1724659074345,7.85424727,159.28,159.25,16.14258006]
[1724659074346,1.56946168,159.33,159.26,20.0]
[1724659074756,7.85441179,159.32,159.26,20.0]
[1724659074962,9.42389909,159.31,159.26,20.0]
[1724659075168,7.85441179,159.3,159.26,20.0]
[1724659075369,7.85441179,159.29,159.26,20.0]
[1724659075573,7.85441818,159.28,159.26,20.0]